bitfinex-derivatives/quotes_BTCF0:USTF0_20250719
["timestamp","ask_amount","ask_price","bid_price","bid_amount"]
[1752953222830,0.6568514,117950.0,117940.0,0.45935876]
[1752953223027,0.2960514,117950.0,117940.0,0.45935876]
[1752953223227,0.6568514,117950.0,117940.0,0.45935876]
[1752953224835,0.2960514,117950.0,117940.0,0.45935876]
[1752953225033,0.6568514,117950.0,117940.0,0.45935876]
[1752953226834,0.2960514,117950.0,117940.0,0.45935876]
[1752953227032,0.6568514,117950.0,117940.0,0.45935876]
[1752953228036,0.2960514,117950.0,117940.0,0.45935876]
[1752953228737,0.2960514,117950.0,117940.0,0.24190161]
[1752953228936,0.2960514,117950.0,117940.0,0.45935876]
[1752953231438,0.8824514,117950.0,117940.0,0.45935876]
[1752953232943,0.8824514,117950.0,117940.0,0.56811871]
[1752953233243,0.9433444,117950.0,117940.0,0.56811871]
[1752953237448,0.9433444,117950.0,117940.0,0.24190161]
[1752953237750,0.9433444,117950.0,117940.0,0.56811871]
[1752953239150,0.8824514,117950.0,117940.0,0.56811871]
[1752953240255,0.8824514,117950.0,117940.0,0.57502871]
[1752953244458,1.2432514,117950.0,117940.0,0.57502871]
[1752953248461,0.8824514,117950.0,117940.0,0.57502871]
[1752953248661,0.2960514,117950.0,117940.0,0.57502871]
[1752953248859,0.8810114,117950.0,117940.0,0.57502871]
[1752953250557,0.2960514,117950.0,117940.0,0.57502871]
[1752953250763,0.8807714,117950.0,117940.0,0.57502871]
[1752953251563,0.2960514,117950.0,117940.0,0.57502871]
[1752953251764,0.8806514,117950.0,117940.0,0.57502871]
[1752953254162,0.2960514,117950.0,117940.0,0.57502871]
[1752953254464,0.8804914,117950.0,117940.0,0.93979871]
[1752953254965,0.8804914,117950.0,117940.0,0.93582871]
[1752953256868,0.2960514,117950.0,117940.0,0.93582871]
[1752953257069,0.8804514,117950.0,117940.0,0.93979871]
[1752953257765,0.2209814,117950.0,117940.0,0.93979871]
[1752953257971,0.7959114,117950.0,117940.0,0.93979871]
[1752953258265,0.8054314,117950.0,117940.0,0.93979871]
[1752953258870,0.6359581,117950.0,117940.0,0.93979871]
[1752953259668,0.0515581,117950.0,117940.0,1.10290726]
[1752953259869,0.0515581,117950.0,117940.0,0.93979871]
[1752953260168,0.2210314,117950.0,117940.0,0.93979871]
[1752953261172,0.0515581,117950.0,117940.0,0.93979871]
[1752953262371,0.0515581,117950.0,117940.0,1.10290726]
[1752953266678,0.0184481,117950.0,117940.0,1.10290726]
[1752953266878,0.9378676,117970.0,117960.0,0.2340789]
[1752953267079,0.9378676,117970.0,117960.0,0.560296]
[1752953267380,0.9707776,117970.0,117960.0,0.560296]
[1752953268078,0.9717776,117970.0,117960.0,0.560296]
[1752953268275,0.3874176,117970.0,117960.0,0.560296]
[1752953268579,0.9717776,117970.0,117960.0,0.921096]
[1752953268880,0.9727776,117970.0,117960.0,0.921096]
[1752953269070,1.0336706,117970.0,117960.0,0.921096]
[1752953269272,0.4493106,117970.0,117960.0,0.921096]
[1752953269472,1.0336706,117970.0,117960.0,0.921096]
[1752953269880,1.0316706,117970.0,117960.0,0.921096]
[1752953270469,0.9893094,117970.0,117960.0,0.921096]
[1752953270980,0.4049494,117970.0,117960.0,0.921096]
[1752953271372,0.9283764,117970.0,117960.0,0.921096]
[1752953271580,0.3440564,117970.0,117960.0,0.921096]
[1752953271874,0.9283764,117970.0,117960.0,0.921096]
[1752953272280,0.3440564,117970.0,117960.0,0.921096]
[1752953272580,0.9283764,117970.0,117960.0,0.921096]
[1752953274382,0.9283764,117970.0,117960.0,0.560296]
[1752953274582,0.9283764,117970.0,117960.0,0.917126]
[1752953275983,0.3440564,117970.0,117960.0,0.917126]
[1752953276186,0.9283364,117970.0,117960.0,0.917126]
[1752953277282,1.09144495,117970.0,117960.0,0.06065]
[1752953277487,0.2114788,117960.0,117950.0,0.3555063]
[1752953277686,0.2757288,117960.0,117950.0,0.51861485]
[1752953277984,0.2757432,117950.0,117940.0,0.41018006]
[1752953278288,1.2208232,117950.0,117940.0,0.33259605]
[1752953278590,0.8600232,117950.0,117940.0,0.33259605]
[1752953278783,0.87817957,117950.0,117940.0,0.33259605]
[1752953278984,1.23897957,117950.0,117940.0,0.33259605]
[1752953279282,1.23897957,117950.0,117940.0,0.3282171]
[1752953279684,1.23897957,117950.0,117940.0,0.4977046]
[1752953280288,1.23897957,117950.0,117940.0,0.5297846]
[1752953281490,1.23897957,117950.0,117940.0,0.5512846]
[1752953282691,0.87817957,117950.0,117940.0,0.5512846]
[1752953282989,1.23897957,117950.0,117940.0,0.5512846]
[1752953285691,0.87817957,117950.0,117940.0,0.5512846]
[1752953286792,1.23897957,117950.0,117940.0,0.5576446]
[1752953291502,1.40208812,117950.0,117940.0,0.21868855]
[1752953291694,1.23897957,117950.0,117940.0,0.36667605]
[1752953291895,1.40208812,117950.0,117940.0,0.36667605]
[1752953292898,1.23897957,117950.0,117940.0,0.42106418]
[1752953293900,0.87817957,117950.0,117940.0,0.42106418]
[1752953294103,1.23897957,117950.0,117940.0,0.42106418]
[1752953295198,1.23897957,117950.0,117940.0,0.2035675]
[1752953295408,1.23897957,117950.0,117940.0,0.42106418]
[1752953298006,1.23897957,117950.0,117940.0,0.44256418]
[1752953303013,0.87817957,117950.0,117940.0,0.44256418]
[1752953307316,1.23897957,117950.0,117940.0,0.44256418]
[1752953308014,0.87817957,117950.0,117940.0,0.44256418]
[1752953313623,0.87817957,117950.0,117940.0,0.44892418]
[1752953314923,0.87817957,117950.0,117940.0,0.5576366]
[1752953318220,0.29389957,117950.0,117940.0,0.5576366]
[1752953318525,0.88161957,117950.0,117940.0,0.5576366]
[1752953319224,0.77331937,117950.0,117940.0,0.5576366]
[1752953319423,0.71242637,117950.0,117940.0,0.9184366]
[1752953319826,0.12442637,117950.0,117940.0,0.9224066]
[1752953320127,0.64027637,117950.0,117940.0,1.08551115]
[1752953320424,0.05199637,117950.0,117940.0,1.08551115]
[1752953322926,0.01815637,117950.0,117940.0,1.27382511]
[1752953323126,0.01815637,117950.0,117940.0,0.78451146]
[1752953323518,0.01815637,117950.0,117940.0,1.27382511]
[1752953327035,0.01815637,117950.0,117940.0,1.63462511]
[1752953329141,0.03212,117960.0,117950.0,0.1970332]
[1752953329442,0.03212,117960.0,117950.0,1.5067723]
[1752953329443,0.05053701,117960.0,117950.0,1.5067723]
[1752953331942,0.05053701,117960.0,117950.0,1.5097723]
[1752953333544,0.05053701,117960.0,117950.0,1.8705723]
[1752953335043,0.21999591,117960.0,117950.0,1.8705723]
[1752953335542,0.05053701,117960.0,117950.0,1.8705723]
[1752953335741,0.05053701,117960.0,117950.0,2.03367685]
[1752953336334,0.01841701,117960.0,117950.0,2.03367685]
[1752953339847,0.1016497,117970.0,117960.0,0.1694589]
[1752953340043,0.13568896,117970.0,117960.0,1.08068255]
[1752953340243,0.14024896,117970.0,117960.0,1.08068255]
[1752953341245,0.14024896,117970.0,117960.0,1.08926192]
[1752953344248,0.14024896,117970.0,117960.0,1.08068255]
[1752953345350,0.30969346,117970.0,117960.0,1.08068255]
[1752953345852,0.30969346,117970.0,117960.0,1.08922107]
[1752953348049,0.34090346,117970.0,117960.0,1.08068255]
[1752953348951,0.17145896,117970.0,117960.0,1.08068255]
[1752953349650,0.17145896,117970.0,117960.0,1.08912591]
[1752953350151,0.17145896,117970.0,117960.0,1.08068255]
[1752953353157,0.17145896,117970.0,117960.0,1.08934086]
[1752953354662,0.17145896,117970.0,117960.0,1.08068255]
[1752953354961,0.17145896,117970.0,117960.0,1.08923381]
[1752953355159,0.19035896,117970.0,117960.0,1.08923381]
[1752953355461,0.19035896,117970.0,117960.0,1.08068255]
[1752953356962,0.19035896,117970.0,117960.0,1.0891497]
[1752953357965,0.19035896,117970.0,117960.0,1.08068255]
[1752953358868,0.35980346,117970.0,117960.0,0.5913689]
[1752953359064,0.19035896,117970.0,117960.0,1.08068255]
[1752953359469,0.35980346,117970.0,117960.0,1.08068255]
[1752953360172,0.35980346,117970.0,117960.0,1.08913356]
[1752953360768,0.35980346,117970.0,117960.0,0.71988255]
[1752953360968,0.35980346,117970.0,117960.0,1.08068255]
[1752953369875,0.35980346,117970.0,117960.0,0.917578]
[1752953373782,0.35980346,117970.0,117960.0,0.913608]
[1752953376185,0.35980346,117970.0,117960.0,0.917578]
[1752953391194,0.35980346,117970.0,117960.0,0.913608]
[1752953392196,0.35980346,117970.0,117960.0,0.552808]
[1752953393398,0.35980346,117970.0,117960.0,0.913608]
[1752953397102,0.35980346,117970.0,117960.0,0.917578]
[1752953400805,0.35980346,117970.0,117960.0,0.913608]
[1752953402906,0.35980346,117970.0,117960.0,0.917578]
[1752953407810,0.11999896,117970.0,117960.0,1.08068255]
[1752953408113,0.11999896,117970.0,117960.0,1.08368255]
[1752953410011,0.11999896,117970.0,117960.0,1.08568255]
[1752953413007,0.7835105,117980.0,117970.0,0.1694444]
[1752953413008,0.094773,117980.0,117970.0,0.1694444]
[1752953413214,0.05244695,117980.0,117970.0,1.66098805]
[1752953414314,0.05244695,117980.0,117970.0,1.66198805]
[1752953414614,0.05244695,117980.0,117970.0,1.66398805]
[1752953414813,0.05244695,117980.0,117970.0,1.5008835]
[1752953416515,0.22187715,117980.0,117970.0,1.5008835]
[1752953419416,0.23760715,117980.0,117970.0,1.5008835]
[1752953419617,0.24186715,117980.0,117970.0,1.5008835]
[1752953420420,0.29083715,117980.0,117970.0,1.5007635]
[1752953427423,0.07243695,117980.0,117970.0,1.5007635]
[1752953427623,0.24186715,117980.0,117970.0,1.5007635]
[1752953428931,0.07243695,117980.0,117970.0,1.5007635]
[1752953431630,0.05244695,117980.0,117970.0,1.5007635]
[1752953432332,0.05244695,117980.0,117970.0,1.4997635]
[1752953432533,0.05244695,117980.0,117970.0,1.5017635]
[1752953432734,0.22187715,117980.0,117970.0,1.5017635]
[1752953433232,0.23704715,117980.0,117970.0,1.5017635]
[1752953434034,0.06761695,117980.0,117970.0,1.5017635]
[1752953437935,0.23704715,117980.0,117970.0,1.5017635]
[1752953438435,0.06761695,117980.0,117970.0,1.5017635]
[1752953438635,0.23704715,117980.0,117970.0,1.5017635]
[1752953441037,0.06761695,117980.0,117970.0,1.1755544]
[1752953441239,0.23704715,117980.0,117970.0,1.5017635]
[1752953441938,0.06761695,117980.0,117970.0,1.5017635]
[1752953448748,0.23704715,117980.0,117970.0,1.5017635]
[1752953449443,0.06761695,117980.0,117970.0,1.5017635]
[1752953450043,0.23704715,117980.0,117970.0,1.5017635]
[1752953475369,0.24125715,117980.0,117970.0,1.5017635]
[1752953475968,0.24125715,117980.0,117970.0,1.1755544]
[1752953476169,0.24125715,117980.0,117970.0,1.5017635]
[1752953478466,0.24125715,117980.0,117970.0,1.1409635]
[1752953478666,0.24125715,117980.0,117970.0,1.5017635]
[1752953480273,0.24125715,117980.0,117970.0,1.1409635]
[1752953480473,0.26853715,117980.0,117970.0,1.1409635]
[1752953481063,0.26853715,117980.0,117970.0,1.5017635]
[1752953483672,0.2499702,117980.0,117970.0,1.1409635]
[1752953483870,0.26838509,117980.0,117970.0,1.5017635]
[1752953485372,0.24110509,117980.0,117970.0,1.5017635]
[1752953487472,0.2226902,117980.0,117970.0,1.5017635]
[1752953487673,0.24121032,117980.0,117970.0,1.5017635]
[1752953492082,0.24121043,117980.0,117970.0,1.5017635]
[1752953502786,0.24121043,117980.0,117970.0,1.66486805]
[1752953503289,0.24121043,117980.0,117970.0,1.5017635]
[1752953503889,0.05661023,117980.0,117970.0,1.5017635]
[1752953506787,0.05240023,117980.0,117970.0,1.66486805]
[1752953511802,0.05240023,117980.0,117970.0,1.30406805]
[1752953512003,0.05240023,117980.0,117970.0,2.02566805]
[1752953513703,0.09851262,117990.0,117980.0,0.2234808]
[1752953513903,0.09851262,117990.0,117980.0,1.09245496]
[1752953514905,0.09851262,117990.0,117980.0,1.09445496]
[1752953515406,0.09851262,117990.0,117980.0,1.10284818]
[1752953520505,0.26792912,117990.0,117980.0,1.10284818]
[1752953521212,0.09851262,117990.0,117980.0,1.10284818]
[1752953521509,0.26792912,117990.0,117980.0,1.10284818]
[1752953525010,0.09851262,117990.0,117980.0,1.10284818]
[1752953525511,0.03065,117990.0,117980.0,1.10284818]
[1752953525703,0.04886978,117990.0,117980.0,1.10284818]
[1752953526813,0.04886978,117990.0,117980.0,1.09445496]
[1752953528519,0.04886978,117990.0,117980.0,1.10302011]
[1752953530722,0.21828628,117990.0,117980.0,1.10302011]
[1752953532422,0.04886978,117990.0,117980.0,1.10302011]
[1752953533322,0.04886978,117990.0,117980.0,0.61370646]
[1752953533623,0.04886978,117990.0,117980.0,1.10302011]
[1752953535124,0.04886978,117990.0,117980.0,1.10291639]
[1752953536227,0.21828628,117990.0,117980.0,1.10291639]
[1752953538428,0.04886978,117990.0,117980.0,1.10291639]
[1752953547939,0.07558861,118000.0,117990.0,0.1870465]
[1752953548141,0.09366767,118000.0,117990.0,1.68649015]
[1752953549634,0.09366767,118000.0,117990.0,1.5233856]
[1752953549833,0.02621906,118000.0,117990.0,1.68649015]
[1752953550031,0.02621906,118000.0,117990.0,1.5233856]
[1752953550640,0.02621906,118000.0,117990.0,1.68649015]
[1752953551441,0.02721906,118000.0,117990.0,1.5233856]
[1752953553546,0.070033,118000.0,117990.0,1.5233856]
[1752953553945,0.070033,118000.0,117990.0,1.68649015]
[1752953554644,0.00914,118000.0,117990.0,1.68649015]
[1752953554846,0.00914,118000.0,117990.0,1.5233856]
[1752953555746,0.03247,118000.0,117990.0,1.5233856]
[1752953559950,0.05054892,118000.0,117990.0,1.5233856]
[1752953560547,0.21995102,118000.0,117990.0,1.5233856]
[1752953561249,0.23999102,118000.0,117990.0,1.5233856]
[1752953561448,0.28477102,118000.0,117990.0,1.5231456]
[1752953562451,0.64557102,118000.0,117990.0,0.2294365]
[1752953562645,0.64557102,118000.0,117990.0,0.39254105]
[1752953564350,0.64557102,118000.0,117990.0,0.5556456]
[1752953564551,1.22901102,118000.0,117990.0,0.5556456]
[1752953564947,0.86821102,118000.0,117990.0,0.5556456]
[1752953565146,1.22901102,118000.0,117990.0,0.5556456]
[1752953565648,0.64557102,118000.0,117990.0,0.5789056]
[1752953565852,0.86817102,118000.0,117990.0,0.9397056]
[1752953566054,0.28477112,118000.0,117990.0,0.9397056]
[1752953566750,0.11536892,118000.0,117990.0,0.9397056]
[1752953567551,0.28477112,118000.0,117990.0,0.9397056]
[1752953568353,0.28477112,118000.0,117990.0,0.9417056]
[1752953569051,0.11536892,118000.0,117990.0,0.9417056]
[1752953569252,0.11436892,118000.0,117990.0,0.9427056]
[1752953569453,0.11441049,118000.0,117990.0,0.9437056]
[1752953570356,0.28381269,118000.0,117990.0,0.9437056]
[1752953573656,0.28381269,118000.0,117990.0,0.6174965]
[1752953573857,0.28381269,118000.0,117990.0,0.9437056]
[1752953575758,0.11441049,118000.0,117990.0,0.9437056]
[1752953576359,0.11441178,118000.0,117990.0,0.9437056]
[1752953577658,0.09720178,118000.0,117990.0,0.9437056]
[1752953578360,0.11467178,118000.0,117990.0,0.9437056]
[1752953580963,0.05346178,118000.0,117990.0,0.9437056]
[1752953581456,0.04959178,118000.0,117990.0,1.10681015]
[1752953581657,0.02626178,118000.0,117990.0,1.10681015]
[1752953581858,0.02626178,118000.0,117990.0,0.9437056]
[1752953583466,0.05023178,118000.0,117990.0,0.9437056]
[1752953586777,0.21963398,118000.0,117990.0,0.9437056]
[1752953587781,0.21963398,118000.0,117990.0,0.5829056]
[1752953587982,0.21963398,118000.0,117990.0,0.9437056]
[1752953588280,0.05023178,118000.0,117990.0,0.9437056]
[1752953589283,0.21963398,118000.0,117990.0,0.9437056]
[1752953589784,0.22347398,118000.0,117990.0,0.9437056]
[1752953590082,0.05407178,118000.0,117990.0,0.9437056]
[1752953591387,0.22347398,118000.0,117990.0,0.9437056]
[1752953592288,0.28436698,118000.0,117990.0,0.9437056]
[1752953595191,0.22347398,118000.0,117990.0,0.9437056]
[1752953598892,0.28436698,118000.0,117990.0,0.9437056]
[1752953599191,0.22347398,118000.0,117990.0,0.9437056]
[1752953599387,0.05407178,118000.0,117990.0,0.9437056]
[1752953600095,0.22347398,118000.0,117990.0,0.9437056]
[1752953601793,0.22347398,118000.0,117990.0,0.5829056]
[1752953601991,0.05407178,118000.0,117990.0,0.9437056]
[1752953604092,0.22347398,118000.0,117990.0,0.9437056]
[1752953613192,0.05407178,118000.0,117990.0,0.9437056]
[1752953614796,0.22347408,118000.0,117990.0,0.9437056]
[1752953619602,0.01812178,118000.0,117990.0,1.10681015]
[1752953621203,0.01812178,118000.0,117990.0,1.71851015]
[1752953625403,0.01812178,118000.0,117990.0,1.35771015]
[1752953625605,0.01812178,118000.0,117990.0,2.07931015]
[1752953629809,0.07472243,118010.0,118000.0,0.2028322]
[1752953630009,0.09276793,118010.0,118000.0,1.68463585]
[1752953630208,0.11594793,118010.0,118000.0,1.68463585]
[1752953630904,0.11594793,118010.0,118000.0,1.68663585]
[1752953632311,0.11594793,118010.0,118000.0,1.68763585]
[1752953632611,0.11594793,118010.0,118000.0,1.68863585]
[1752953640315,0.09276793,118010.0,118000.0,1.68863585]
[1752953640511,0.085303,118020.0,118010.0,0.2043479]
[1752953640716,0.02441,118020.0,118010.0,1.10603155]
[1752953641216,0.131143,118030.0,118020.0,0.2032736]
[1752953641515,0.147583,118030.0,118020.0,0.74521725]
[1752953641720,0.3169422,118030.0,118020.0,0.74521725]
[1752953642415,0.3169422,118030.0,118020.0,0.2559036]
[1752953642617,0.3246422,118030.0,118020.0,0.5821127]
[1752953642915,0.3246422,118030.0,118020.0,0.58934223]
[1752953643915,0.39230753,118030.0,118020.0,0.58934223]
[1752953644116,0.39330753,118030.0,118020.0,0.58934223]
[1752953644425,0.33241453,118030.0,118020.0,0.95014223]
[1752953650108,0.28969453,118030.0,118020.0,1.53356223]
[1752953650308,0.33241453,118030.0,118020.0,1.53356223]
[1752953650509,0.33241453,118030.0,118020.0,1.5242127]
[1752953650715,0.33241453,118030.0,118020.0,1.68731725]
[1752953651416,0.33241453,118030.0,118020.0,1.69589353]
[1752953652511,0.35044035,118030.0,118020.0,1.69589353]
[1752953652918,0.35044035,118030.0,118020.0,1.1980036]
[1752953653211,0.35044035,118030.0,118020.0,1.68731725]
[1752953654421,0.35044035,118030.0,118020.0,1.69584427]
[1752953655621,0.35044035,118030.0,118020.0,1.33504427]
[1752953655821,0.35044035,118030.0,118020.0,1.69584427]
[1752953658827,0.35044035,118030.0,118020.0,1.33504427]
[1752953659023,0.35044035,118030.0,118020.0,1.68731725]
[1752953659825,0.35044035,118030.0,118020.0,1.5242127]
[1752953660027,0.35044035,118030.0,118020.0,0.9418527]
[1752953660329,0.35044035,118030.0,118020.0,0.5810527]
[1752953662424,0.35044035,118030.0,118020.0,0.5380627]
[1752953662629,0.2644338,118020.0,118010.0,0.33499734]
[1752953662927,1.22545962,118020.0,118010.0,0.72623264]
[1752953663320,1.22545962,118020.0,118010.0,0.72749264]
[1752953663521,0.86465962,118020.0,118010.0,0.72749264]
[1752953663920,0.86465962,118020.0,118010.0,0.72623264]
[1752953664121,0.28245962,118020.0,118010.0,0.72623264]
[1752953664331,0.28245962,118020.0,118010.0,0.72823264]
[1752953664831,0.28245962,118020.0,118010.0,0.73690727]
[1752953665733,0.28245962,118020.0,118010.0,1.09770727]
[1752953666833,0.28245962,118020.0,118010.0,1.08903264]
[1752953667131,0.28245962,118020.0,118010.0,1.0974618]
[1752953667432,0.28245962,118020.0,118010.0,1.08903264]
[1752953669434,0.28245962,118020.0,118010.0,0.72823264]
[1752953669629,0.28235327,118020.0,118010.0,1.08903264]
[1752953671836,0.28235327,118020.0,118010.0,1.0989803]
[1752953674935,0.28235327,118020.0,118010.0,0.7381803]
[1752953675234,0.28235327,118020.0,118010.0,1.0989803]
[1752953675737,0.28235327,118020.0,118010.0,1.0977203]
[1752953677037,0.28235327,118020.0,118010.0,0.7369203]
[1752953677230,0.28235327,118020.0,118010.0,1.0977203]
[1752953679038,0.28235327,118020.0,118010.0,1.08903264]
[1752953679633,0.28235327,118020.0,118010.0,0.76282354]
[1752953679834,0.28235327,118020.0,118010.0,1.08903264]
[1752953680538,0.28235327,118020.0,118010.0,1.09029264]
[1752953683239,0.28235327,118020.0,118010.0,0.76408354]
[1752953683440,0.28235327,118020.0,118010.0,1.09029264]
[1752953686745,0.28235327,118020.0,118010.0,0.72949264]
[1752953686943,0.28235307,118020.0,118010.0,0.72949264]
[1752953687144,0.28235307,118020.0,118010.0,1.09029264]
[1752953688143,0.11297947,118020.0,118010.0,1.09029264]
[1752953689446,0.28235307,118020.0,118010.0,1.09029264]
[1752953690646,0.28235307,118020.0,118010.0,1.08903264]
[1752953691641,0.28235307,118020.0,118010.0,1.09000264]
[1752953707759,0.28235307,118020.0,118010.0,0.72920264]
[1752953708158,0.28235307,118020.0,118010.0,1.09000264]
[1752953709261,0.28235317,118020.0,118010.0,1.09000264]
[1752953709661,0.11297947,118020.0,118010.0,1.09000264]
[1752953713861,0.07043947,118020.0,118010.0,1.09000264]
[1752953714064,0.01791947,118020.0,118010.0,1.25310719]
[1752953714966,0.01791947,118020.0,118010.0,1.61390719]
[1752953721676,0.01791947,118020.0,118010.0,1.90560719]
[1752953722469,0.01791947,118020.0,118010.0,2.26560719]
[1752953729785,0.01791947,118020.0,118010.0,1.77629354]
[1752953729987,0.01791947,118020.0,118010.0,2.26560719]
[1752953734892,0.01791947,118020.0,118010.0,1.54400719]
[1752953735089,0.01791947,118020.0,118010.0,2.26560719]
[1752953743897,0.02523947,118020.0,118010.0,2.26560719]
[1752953745400,0.04852947,118020.0,118010.0,2.26560719]
[1752953746603,0.02523947,118020.0,118010.0,2.26560719]
[1752953748702,0.01791947,118020.0,118010.0,2.26560719]
[1752953750604,0.01791947,118020.0,118010.0,2.84688719]
[1752953752305,0.01791947,118020.0,118010.0,2.84788719]
[1752953752505,0.01791947,118020.0,118010.0,2.84888719]
[1752953757604,0.06766533,118030.0,118020.0,0.2518637]
[1752953757802,0.0744,118040.0,118030.0,0.2025093]
[1752953758106,0.0744,118040.0,118030.0,1.68316295]
[1752953758307,0.0744,118040.0,118030.0,1.5200584]
[1752953759509,0.0754,118040.0,118030.0,1.5200584]
[1752953760008,0.14409865,118040.0,118030.0,1.5200584]
[1752953760910,0.16090865,118040.0,118030.0,1.5200584]
[1752953769613,0.17883167,118040.0,118030.0,1.5200584]
[1752953769815,0.15413167,118040.0,118030.0,1.5200584]
[1752953771116,0.13732167,118040.0,118030.0,1.5200584]
[1752953771316,0.13732167,118040.0,118030.0,1.68316295]
[1752953772218,0.13732167,118040.0,118030.0,1.5200584]
[1752953776819,0.13732167,118040.0,118030.0,1.1592584]
[1752953777017,0.13732167,118040.0,118030.0,1.5200584]
[1752953779122,0.13732167,118040.0,118030.0,1.1592584]
[1752953779316,0.13732167,118040.0,118030.0,1.5200584]
[1752953784126,0.16091339,118060.0,118040.0,0.0459]
[1752953784427,0.02392,118060.0,118050.0,1.64626425]
[1752953784819,0.03132,118060.0,118050.0,1.64626425]
[1752953785216,0.02392,118060.0,118050.0,1.64626425]
[1752953785421,0.02692,118060.0,118050.0,1.64626425]
[1752953786023,0.03432,118060.0,118050.0,1.64626425]
[1752953786216,0.03332,118060.0,118050.0,1.64626425]
[1752953787622,0.03332,118060.0,118050.0,1.4831597]
[1752953787823,0.03332,118060.0,118050.0,1.4914678]
[1752953788522,0.03332,118060.0,118050.0,1.55967796]
[1752953789821,0.03332,118060.0,118050.0,1.85137796]
[1752953790023,0.03332,118060.0,118050.0,2.01448251]
[1752953790625,0.03332,118060.0,118050.0,2.01460251]
[1752953792324,0.03332,118060.0,118050.0,1.85149796]
[1752953794425,0.03332,118060.0,118050.0,2.01460251]
[1752953796128,0.05068874,118060.0,118050.0,2.01460251]
[1752953797225,0.05068874,118060.0,118050.0,2.37540251]
[1752953797828,0.05068874,118060.0,118050.0,2.01460251]
[1752953803937,0.06985874,118060.0,118050.0,1.2023678]
[1752953804235,0.11094874,118060.0,118050.0,1.7828478]
[1752953805739,0.28026524,118060.0,118050.0,1.4121297]
[1752953807538,0.28026524,118060.0,118050.0,1.1204297]
[1752953807738,0.28026524,118060.0,118050.0,0.5400197]
[1752953808439,0.28026524,118060.0,118050.0,0.5416297]
[1752953808639,0.28026524,118060.0,118050.0,0.55022574]
[1752953811840,0.11094874,118060.0,118050.0,0.2154206]
[1752953812039,0.28026524,118060.0,118050.0,0.5416297]
[1752953812539,0.28026524,118060.0,118050.0,0.9024297]
[1752953813242,0.11094874,118060.0,118050.0,0.9024297]
[1752953817145,0.09485874,118060.0,118050.0,0.9024297]
[1752953821449,0.06985874,118060.0,118050.0,0.9024297]
[1752953821851,0.05068874,118060.0,118050.0,0.9024297]
[1752953825766,0.03332,118060.0,118050.0,0.9024297]
[1752953827860,0.03332,118060.0,118050.0,1.06553425]
[1752953828260,0.03332,118060.0,118050.0,0.9024297]
[1752953831470,0.05087707,118060.0,118050.0,0.9024297]
[1752953831669,0.04347707,118060.0,118050.0,1.06553425]
[1752953831870,0.01955707,118060.0,118050.0,1.06553425]
[1752953832569,0.04215707,118060.0,118050.0,1.06553425]
[1752953836972,0.01955707,118060.0,118050.0,1.06553425]
[1752953837167,0.01955707,118060.0,118050.0,1.35723425]
[1752953839673,0.01955707,118060.0,118050.0,1.51723425]
[1752953839873,0.01955707,118060.0,118050.0,1.70723425]
[1752953847883,0.01955707,118060.0,118050.0,2.06803425]
[1752953850386,0.01955707,118060.0,118050.0,1.34643425]
[1752953850586,0.01955707,118060.0,118050.0,2.06803425]
[1752953851684,0.03174,118080.0,118070.0,0.1693023]
[1752953851889,0.03174,118080.0,118070.0,1.64484595]
[1752953852090,0.03174,118080.0,118070.0,1.4817414]
[1752953852691,0.03174,118080.0,118070.0,1.64484595]
[1752953853092,0.03174,118080.0,118070.0,1.4817414]
[1752953853590,0.03374,118080.0,118070.0,1.4817414]
[1752953854491,0.03374,118080.0,118070.0,1.64484595]
[1752953854885,0.03374,118080.0,118070.0,1.4817414]
[1752953855392,0.03374,118080.0,118070.0,1.64484595]
[1752953855594,0.03374,118080.0,118070.0,2.00564595]
[1752953856195,0.02684,118080.0,118070.0,2.00564595]
[1752953858198,0.03374,118080.0,118070.0,2.00564595]
[1752953863102,0.03174,118080.0,118070.0,2.00564595]
[1752953863294,0.03274,118080.0,118070.0,2.00564595]
[1752953863600,0.05013062,118080.0,118070.0,2.00564595]
[1752953866801,0.04913062,118080.0,118070.0,2.00664595]
[1752953867900,0.04913062,118080.0,118070.0,2.00864595]
[1752953868103,0.01739062,118080.0,118070.0,2.00864595]
[1752953871404,0.10105525,118090.0,118080.0,0.2116879]
[1752953871705,0.11844434,118090.0,118080.0,1.06180155]
[1752953872006,0.04912909,118090.0,118080.0,1.06180155]
[1752953875804,0.04912909,118090.0,118080.0,1.08100752]
[1752953885218,0.04912909,118090.0,118080.0,0.59169387]
[1752953885516,0.06774909,118090.0,118080.0,1.66052752]
[1752953885815,0.10567909,118090.0,118080.0,0.22928387]
[1752953886012,0.27495269,118090.0,118080.0,0.22928387]
[1752953886206,0.27495269,118090.0,118080.0,0.55291297]
[1752953886907,0.63575269,118090.0,118080.0,0.55291297]
[1752953890725,0.27495269,118090.0,118080.0,0.55291297]
[1752953891426,0.27495269,118090.0,118080.0,0.55549297]
[1752953891921,0.63575269,118090.0,118080.0,0.55549297]
[1752953892123,0.27495269,118090.0,118080.0,0.55549297]
[1752953894018,0.10567909,118090.0,118080.0,0.55549297]
[1752953894228,0.27495259,118090.0,118080.0,0.55549297]
[1752953894427,0.27495259,118090.0,118080.0,0.71859752]
[1752953894629,0.27495259,118090.0,118080.0,0.55549297]
[1752953894828,0.27495259,118090.0,118080.0,0.71859752]
[1752953895625,0.10567909,118090.0,118080.0,0.71859752]
[1752953895830,0.27495259,118090.0,118080.0,1.07939752]
[1752953896025,0.27495259,118090.0,118080.0,1.08093614]
[1752953896529,0.27495259,118090.0,118080.0,0.72013614]
[1752953897930,0.27495259,118090.0,118080.0,0.55703159]
[1752953899226,0.27495259,118090.0,118080.0,0.23082249]
[1752953899631,0.27495259,118090.0,118080.0,0.55703159]
[1752953899828,0.27495259,118090.0,118080.0,0.91783159]
[1752953900028,0.27495259,118090.0,118080.0,0.55703159]
[1752953901026,0.27495259,118090.0,118080.0,0.91783159]
[1752953901529,0.27495259,118090.0,118080.0,0.55703159]
[1752953904333,0.10567909,118090.0,118080.0,0.91783159]
[1752953904534,0.10567909,118090.0,118080.0,0.55703159]
[1752953905528,0.27495269,118090.0,118080.0,0.55703159]
[1752953905732,0.10567909,118090.0,118080.0,0.55703159]
[1752953908734,0.27495269,118090.0,118080.0,0.55703159]
[1752953909236,0.10567909,118090.0,118080.0,0.55703159]
[1752953910336,0.10567909,118090.0,118080.0,0.72013614]
[1752953911337,0.10567909,118090.0,118080.0,0.55703159]
[1752953911828,0.27495269,118090.0,118080.0,0.55703159]
[1752953912434,0.10567909,118090.0,118080.0,0.55703159]
[1752953912634,0.27495259,118090.0,118080.0,0.55703159]
[1752953915539,0.10567909,118090.0,118080.0,0.55703159]
[1752953915941,0.10567909,118090.0,118080.0,0.23082249]
[1752953916142,0.10567909,118090.0,118080.0,0.55703159]
[1752953916441,0.27495259,118090.0,118080.0,0.55703159]
[1752953918142,0.27454115,118090.0,118080.0,0.55703159]
[1752953921044,0.10526765,118090.0,118080.0,0.55703159]
[1752953924142,0.10526765,118090.0,118080.0,0.72013614]
[1752953924342,0.10526765,118090.0,118080.0,0.72174614]
[1752953924543,0.06733765,118090.0,118080.0,1.08254614]
[1752953924743,0.64661765,118090.0,118080.0,1.08254614]